fUST/lending_fUST_20251017
["ID","MTS","AMOUNT","RATE_DAILY","PERIOD"]
[391602348,1760691040528,-420.0,0.00031276,3]
[391602350,1760691040537,-420.0,0.00031276,2]
[391602352,1760691040547,-3590.36,0.00031361,2]
[391602354,1760691040556,-177.78139023,0.00031362,2]
[391602356,1760691040565,-151.27,0.00031362,15]
[391602358,1760691040575,-150.16,0.00031369,15]
[391602359,1760691040584,-339.432499,0.000314,10]
[391602361,1760691040594,-3878.5828587,0.00031402,2]
[391602363,1760691040603,-1680.0,0.00031411,3]
[391602365,1760691040613,-391971.8016,0.00031444,2]
[391602367,1760691040623,-151.27,0.00031462,15]
[391602369,1760691040632,-150.16,0.00031469,15]
[391602371,1760691040641,-505.52424355,0.00031473,5]
[391602373,1760691040651,-501.33786516,0.00031473,5]
[391602375,1760691040660,-409.51912865,0.00031473,5]
[391602377,1760691040670,-500.0,0.00031473,5]
[391602379,1760691040679,-502.00722075,0.00031473,5]
[391602381,1760691040688,-502.50088888,0.00031473,5]
[391602383,1760691040697,-500.0,0.00031473,5]
[391602385,1760691040709,-161.73935046,0.00031473,5]
[391602387,1760691040719,-1000.0,0.00031521,5]
[391602389,1760691040728,-151.27,0.00031562,15]
[391602391,1760691040737,-2500.0,0.00031564,5]
[391602393,1760691040746,-2500.0,0.00031564,5]
[391602395,1760691040755,-150.16,0.00031569,15]
[391602397,1760691040764,-2500.0,0.00031572,5]
[391602399,1760691040774,-4768.95949524,0.00031592,2]
[391602401,1760691040783,-2386.77,0.000316,2]
[391602403,1760691040792,-1016.30320986,0.00031616,5]
[391602405,1760691040801,-2000.0,0.00031616,5]
[391602407,1760691040810,-360.0,0.00031646,2]
[391602408,1760691040819,-151.27,0.00031662,15]
[391602411,1760691040830,-2500.0,0.00031664,5]
[391602412,1760691040839,-5000.0,0.00031669,3]
[391602414,1760691040849,-150.16,0.00031669,15]
[391602416,1760691040858,-339.432499,0.00031688,10]
[391602418,1760691040867,-153.231301,0.00031688,10]
[391602420,1760691040877,-151.27,0.00031762,15]
[391602422,1760691040886,-150.16,0.00031769,15]
[391602423,1760691040896,-397.5,0.00031805,2]
[391602425,1760691040905,-151.27,0.00031862,15]
[391602427,1760691040914,-150.16,0.00031869,15]
[391602428,1760691040924,-151.27,0.00031962,15]
[391602429,1760691040933,-150.16,0.00031969,15]
[391602430,1760691040942,-339.432499,0.00031976,10]
[391602431,1760691040952,-153.231301,0.00031976,10]
[391602432,1760691040964,-500.0,0.00031989,2]
[391602433,1760691040974,-1000.0,0.00031989,2]
[391602434,1760691040983,-1000.0,0.00031989,2]
[391602435,1760691040997,-1000.0,0.00031989,2]
[391602436,1760691041006,-1000.0,0.00031989,2]
[391602437,1760691041016,-1000.0,0.00031989,2]
[391602438,1760691041026,-150.0,0.00031989,2]
[391602439,1760691041036,-1000.0,0.00032021,5]
[391602440,1760691041046,-1006.6509882,0.00032021,5]
[391602441,1760691041055,-151.27,0.00032062,15]
[391602442,1760691041067,-1500.0,0.00032068,5]
[391602443,1760691041077,-150.16,0.00032069,15]
[391602444,1760691041086,-2971.95,0.000321,7]
[391602445,1760691041096,-1000.0,0.00032112,5]
[391602446,1760691041105,-1500.0,0.00032112,5]
[391602447,1760691041114,-1500.0,0.0003212,5]
[391602448,1760691041124,-720.0,0.00032143,30]
[391602449,1760691041134,-151.27,0.00032162,15]
[391602450,1760691041143,-2000.0,0.00032164,5]
[391602451,1760691041153,-150.16,0.00032169,15]
[391602452,1760691041163,-157.59,0.00032192,14]
[391602453,1760691041173,-460.0,0.00032194,2]
[391602454,1760691041182,-865.4288144,0.00032206,2]
[391602455,1760691041191,-3000.0,0.00032212,5]
[391602456,1760691041201,-151.27,0.00032262,15]
[391602457,1760691041213,-339.432499,0.00032263,10]
[391602458,1760691041222,-153.231301,0.00032263,10]
[391602459,1760691041232,-150.16,0.00032269,15]
[391602460,1760691041242,-1000.0,0.00032314,2]
[391602461,1760691041251,-151.27,0.00032362,15]
[391602462,1760691041261,-150.16,0.00032369,15]
[391602463,1760691041270,-1000.0,0.00032392,2]
[391602464,1760691041280,-961.04,0.000324,2]
[391602465,1760691041291,-340.99930129,0.00032405,2]
[391602466,1760691041301,-151.27,0.00032462,15]
[391602467,1760691041311,-150.16,0.00032469,15]
[391602468,1760691041320,-6597.5378898,0.00032472,2]
[391602469,1760691041329,-4768.95949524,0.00032482,2]
[391602470,1760691041339,-339.432499,0.00032551,10]
[391602471,1760691041348,-153.231301,0.00032551,10]
[391602472,1760691041357,-151.27,0.00032562,15]
[391602473,1760691041367,-1500.0,0.00032568,5]
[391602474,1760691041376,-150.16,0.00032569,15]
[391602475,1760691041386,-370000.0,0.00032571,2]
[391602476,1760691041400,-1000.0,0.00032582,2]
[391602477,1760691041411,-2000.0,0.00032616,5]
[391602478,1760691041421,-151.27,0.00032662,15]
[391602479,1760691041431,-150.16,0.00032669,15]
[391602480,1760691041440,-500.0,0.00032681,2]
[391602481,1760691041449,-560.0,0.00032742,2]
[391602482,1760691041463,-959.48373794,0.0003276,5]
[391602483,1760691041472,-151.27,0.00032762,15]
[391602484,1760691041482,-150.16,0.00032769,15]
[391602485,1760691041491,-151.27,0.00032862,15]
[391602486,1760691041500,-500.0,0.00032868,5]
[391602487,1760691041509,-500.0,0.00032868,5]
[391602488,1760691041518,-150.16,0.00032869,15]
[391602489,1760691041529,-1999.0,0.00032876,120]
[391602490,1760691041537,-151.27,0.00032962,60]
[391602491,1760691041547,-150.16,0.00032969,60]
[391602492,1760691041556,-2386.77,0.00033,14]
[391602493,1760691041565,-151.27,0.00033062,60]
[391602494,1760691041574,-150.16,0.00033069,60]
[391602495,1760691041583,-2000.0,0.00033116,5]
[391602496,1760691041593,-151.27,0.00033162,60]
[391602497,1760691041602,-2500.0,0.00033164,5]
[391602498,1760691041611,-150.16,0.00033169,60]
[391602499,1760691041620,-151.27,0.00033262,60]
[391602500,1760691041629,-150.16,0.00033269,60]
[391602501,1760691041639,-660.0,0.0003329,2]
[391602502,1760691041648,-250.0,0.00033304,2]
[391602503,1760691041657,-250.841811,0.00033337,60]
[391602504,1760691041666,-151.27,0.00033362,60]
[391602505,1760691041676,-150.16,0.00033369,60]
[391602506,1760691041685,-501.05544168,0.00033416,5]
[391602507,1760691041694,-409120.0498,0.00033444,2]
[391602508,1760691041703,-151.0,0.00033444,30]
[391602509,1760691041714,-220.554941,0.00033444,30]
[391602510,1760691041724,-227.003711,0.00033444,30]
[391602511,1760691041733,-227.003711,0.00033444,30]
[391602512,1760691041742,-227.003711,0.00033444,30]
[391602513,1760691041751,-227.003711,0.00033444,30]
[391602514,1760691041761,-151.0,0.00033444,30]
[391602515,1760691041770,-151.0,0.00033444,30]
[391602516,1760691041779,-151.0,0.00033444,30]
[391602517,1760691041789,-151.0,0.00033444,30]
[391602518,1760691041798,-151.0,0.00033444,30]
[391602519,1760691041807,-151.0,0.00033444,30]
[391602520,1760691041816,-151.27,0.00033462,60]
[391602521,1760691041825,-150.16,0.00033469,60]
[391602522,1760691041835,-339.432499,0.000335,2]
[391602523,1760691041844,-2971.95,0.000335,14]
[391602524,1760691041852,-151.27,0.00033562,60]
[391602525,1760691041861,-150.16,0.00033569,60]
[391602526,1760691041870,-500.72958847,0.00033573,5]
[391602527,1760691041879,-500.0,0.00033573,5]
[391602528,1760691041889,-500.0,0.00033573,5]
[391602529,1760691041898,-500.0,0.00033573,5]
[391602530,1760691041907,-500.0,0.00033573,5]
[391602531,1760691041916,-560.328455,0.0003362,30]
[391602532,1760691041925,-560.328455,0.0003362,30]
[391602533,1760691041934,-560.328455,0.0003362,30]
[391602534,1760691041943,-560.328455,0.0003362,30]
[391602535,1760691041953,-654592.0797,0.00033621,2]
[391602536,1760691041963,-151.27,0.00033662,60]
[391602537,1760691041972,-2512.4240118,0.00033664,5]
[391602538,1760691041982,-150.16,0.00033669,60]
[391602539,1760691041991,-2351.0,0.00033679,3]
[391602540,1760691042001,-1999.0,0.00033698,120]
[391602541,1760691042010,-456.24,0.000337,10]
[391602542,1760691042019,-3000.0,0.00033712,5]
[391602543,1760691042029,-587.0,0.00033744,2]
[391602544,1760691042039,-151.27,0.00033762,60]
[391602545,1760691042048,-150.16,0.00033769,60]
[391602546,1760691042058,-961.04,0.000338,2]
[391602547,1760691042067,-151.0,0.00033809,30]
[391602548,1760691042076,-151.0,0.0003382,2]
[391602549,1760691042086,-151.0,0.0003382,2]
[391602550,1760691042095,-186.510713,0.0003382,30]
[391602551,1760691042104,-227.003711,0.0003382,30]
[391602552,1760691042113,-227.003711,0.0003382,30]
[391602553,1760691042122,-227.003711,0.0003382,30]
[391602554,1760691042131,-227.003711,0.0003382,30]
[391602555,1760691042140,-654592.0797,0.00033821,7]
[391602556,1760691042150,-151.0,0.00033821,30]
[391602557,1760691042159,-151.0,0.00033821,30]
[391602558,1760691042169,-201.05751,0.00033821,30]
[391602559,1760691042178,-171.428805,0.00033821,30]
[391602560,1760691042187,-5000.0,0.00033836,3]
[391602561,1760691042196,-760.0,0.00033838,2]
[391602562,1760691042208,-151.27,0.00033862,60]
[391602563,1760691042217,-150.16,0.00033869,60]
[391602564,1760691042226,-151.0,0.00033909,30]
[391602565,1760691042313,-151.0,0.0003392,2]
[391602566,1760691042323,-262.261169,0.0003392,2]
[391602567,1760691042333,-560.328455,0.0003392,30]
[391602568,1760691042342,-560.328455,0.0003392,30]
[391602569,1760691042351,-560.328455,0.0003392,30]
[391602570,1760691042360,-560.328455,0.0003392,30]
[391602571,1760691042370,-227.003711,0.0003392,30]
[391602572,1760691042380,-227.003711,0.0003392,30]
[391602573,1760691042395,-227.003711,0.0003392,30]
[391602574,1760691042404,-227.003711,0.0003392,30]
[391602575,1760691042413,-915.00755389,0.00033921,120]
[391602576,1760691042423,-654592.0797,0.00033921,30]
[391602577,1760691042433,-100000.0,0.00033921,30]
[391602578,1760691042442,-100000.0,0.00033921,30]
[391602579,1760691042451,-100000.0,0.00033921,30]
[391602580,1760691042466,-100000.0,0.00033921,30]
[391602581,1760691042476,-100000.0,0.00033921,30]
[391602582,1760691042485,-151.0,0.00033921,30]
[391602583,1760691042494,-151.0,0.00033921,30]
[391602584,1760691042503,-151.27,0.00033962,60]
[391602585,1760691042513,-150.16,0.00033969,60]
[391602586,1760691042522,-5385.54,0.00033974,2]
[391602587,1760691042531,-2351.0,0.00034035,3]
[391602588,1760691042541,-151.27,0.00034062,60]
[391602589,1760691042550,-150.16,0.00034069,60]
[391602590,1760691042559,-1000.0,0.00034121,5]
[391602591,1760691042568,-1000.0,0.00034121,5]
[391602592,1760691042577,-1000.0,0.00034121,5]
[391602593,1760691042587,-1000.0,0.00034121,5]
[391602596,1760691042596,-151.27,0.00034162,60]
[391602598,1760691042605,-150.16,0.00034169,60]
[391602600,1760691042614,-3500.0,0.0003426,5]
[391602603,1760691042623,-151.27,0.00034262,60]
[391602604,1760691042633,-150.16,0.00034269,60]
[391602605,1760691042642,-151.27,0.00034362,60]
[391602606,1760691042651,-339.432499,0.00034364,2]
[391602607,1760691042660,-153.231301,0.00034364,2]
[391602609,1760691042669,-150.16,0.00034369,60]
[391602611,1760691042679,-860.0,0.00034386,2]
[391602612,1760691042688,-2386.77,0.000344,14]
[391602613,1760691042698,-366.0,0.00034434,2]
[391602614,1760691042710,-151.27,0.00034462,60]
[391602616,1760691042719,-150.16,0.00034469,60]
[391602617,1760691042728,-1570.35071392,0.000345,2]
[391602618,1760691042738,-383.28688717,0.000345,2]
[391602619,1760691042747,-167.62569736,0.000345,2]
[391602620,1760691042757,-366.0,0.00034505,2]
[391602621,1760691042766,-1999.0,0.0003452,120]
[391602622,1760691042776,-160.0,0.00034531,2]
[391602623,1760691042785,-151.27,0.00034562,60]
[391602624,1760691042795,-150.16,0.00034569,60]
[391602625,1760691042805,-402.69031254,0.00034583,2]
[391602626,1760691042814,-151.27,0.00034662,60]
[391602628,1760691042823,-368.0,0.00034665,7]
[391602630,1760691042832,-672.28036011,0.00034668,5]
[391602632,1760691042841,-150.16,0.00034669,60]
[391602634,1760691042850,-484.42886317,0.00034729,4]
[391602636,1760691042859,-300.0,0.00034729,7]
[391602637,1760691042868,-151.27,0.00034762,60]
[391602638,1760691042877,-150.16,0.00034769,60]
[391602639,1760691042886,-366.0,0.00034787,2]
[391602640,1760691042895,-2539.10756488,0.00034808,5]
[391602641,1760691042904,-151.27,0.00034862,60]
[391602642,1760691042913,-150.16,0.00034869,60]
[391602644,1760691042922,-869.0,0.00034896,7]
[391602646,1760691042931,-1570.35071392,0.000349,2]
[391602648,1760691042940,-383.28688717,0.000349,2]
[391602650,1760691042950,-167.62569736,0.000349,2]
[391602652,1760691042962,-960.0,0.00034934,2]
[391602654,1760691042971,-151.27,0.00034962,60]
[391602656,1760691042980,-150.16,0.00034969,60]
[391602658,1760691042990,-151.27,0.00035062,60]
[391602660,1760691042999,-150.16,0.00035069,60]
[391602662,1760691043008,-368.0,0.00035104,2]
[391602664,1760691043017,-151.27,0.00035162,60]
[391602666,1760691043026,-150.5196265,0.00035169,60]
[391602668,1760691043035,-1570.35071392,0.000352,2]
[391602670,1760691043044,-961.04,0.000352,2]
[391602672,1760691043054,-339.432499,0.00035228,2]
[391602674,1760691043063,-153.231301,0.00035228,2]
[391602676,1760691043072,-366.0,0.0003523,2]
[391602678,1760691043081,-366.0,0.00035238,2]
[391602680,1760691043090,-151.27,0.00035262,60]
[391602682,1760691043099,-366.0,0.00035272,2]
[391602684,1760691043109,-1999.0,0.00035342,120]
[391602686,1760691043118,-864.0,0.00035357,30]
[391602688,1760691043127,-151.27,0.00035362,60]
[391602690,1760691043136,-368.0,0.00035388,2]
[391602691,1760691043144,-339.432499,0.000354,60]
[391602693,1760691043154,-153.231301,0.000354,60]
[391602695,1760691043163,-366.0,0.00035405,7]
[391602697,1760691043172,-572768.0697,0.00035444,7]
[391602699,1760691043181,-151.0,0.00035444,2]
[391602701,1760691043191,-560.328455,0.00035444,30]
[391602703,1760691043201,-560.328455,0.00035444,30]
[391602705,1760691043212,-560.328455,0.00035444,30]
[391602707,1760691043221,-560.328455,0.00035444,30]
[391602709,1760691043231,-227.003711,0.00035444,30]
[391602711,1760691043240,-227.003711,0.00035444,30]
[391602713,1760691043249,-227.003711,0.00035444,30]
[391602715,1760691043258,-227.003711,0.00035444,30]
[391602717,1760691043267,-209.994761,0.00035444,30]
[391602719,1760691043277,-151.0,0.00035444,30]
[391602721,1760691043286,-151.27,0.00035462,60]
[391602723,1760691043295,-1060.0,0.00035482,2]
[391602725,1760691043304,-151.27,0.00035562,60]
[391602727,1760691043314,-1570.35071392,0.000356,2]
[391602729,1760691043323,-383.28688717,0.000356,2]
[391602731,1760691043332,-151.27,0.00035662,60]
[391602733,1760691043340,-152.08,0.000357,14]
[391602735,1760691043351,-151.27,0.00035762,60]
[391602737,1760691043360,-2386.77,0.000358,14]
[391602739,1760691043369,-366.0,0.00035843,120]
[391602741,1760691043378,-151.27,0.00035862,60]
[391602743,1760691043388,-1570.35071392,0.000359,2]
[391602745,1760691043401,-449.79110552,0.00035912,2]
[391602747,1760691043411,-809.62398994,0.00035912,2]
[391602749,1760691043420,-1439.33153767,0.00035912,2]
[391602751,1760691043431,-2248.9555276,0.00035912,2]
[391602753,1760691043441,-3238.49595975,0.00035912,2]
[391602755,1760691043450,-1463.3527355,0.00035923,2]
[391602757,1760691043461,-151.27,0.00035962,60]
[391602759,1760691043471,-5000.0,0.00036002,4]
[391602761,1760691043480,-1160.0,0.00036029,2]
[391602763,1760691043489,-151.27,0.00036062,60]
[391602765,1760691043498,-339.432499,0.00036092,2]
[391602767,1760691043507,-153.231301,0.00036092,2]
[391602769,1760691043516,-151.27,0.00036162,60]
[391602771,1760691043525,-1999.0,0.00036164,120]
[391602773,1760691043535,-869.0,0.0003619,7]
[391602775,1760691043543,-366.0,0.00036258,7]
[391602777,1760691043553,-151.27,0.00036262,60]
[391602778,1760691043562,-1570.35071392,0.000363,2]
[391602780,1760691043571,-2540.0,0.00036306,7]
[391602782,1760691043580,-366.0,0.0003633,7]
[391602784,1760691043590,-366.0,0.00036332,2]
[391602786,1760691043599,-757.0,0.00036339,3]
[391602788,1760691043609,-151.27,0.00036362,60]
[391602790,1760691043618,-869.0,0.00036395,7]
[391602792,1760691043627,-823.0,0.00036406,2]
[391602794,1760691043636,-1463.3527355,0.00036431,2]
[391602796,1760691043646,-151.27,0.00036462,60]
[391602798,1760691043657,-3243.18116651,0.00036466,2]
[391602800,1760691043666,-869.0,0.00036506,120]
[391602801,1760691043675,-339.432499,0.00036523,60]
[391602803,1760691043684,-153.231301,0.00036523,60]
[391602805,1760691043693,-151.27,0.00036562,60]
[391602807,1760691043702,-1463.3527355,0.00036563,2]
[391602809,1760691043714,-1260.0,0.00036577,2]
[391602811,1760691043724,-2540.0,0.00036583,2]
[391602812,1760691043733,-7180.72,0.00036587,2]
[391602814,1760691043742,-1570.35071392,0.000366,2]
[391602816,1760691043751,-961.04,0.000366,2]
[391602818,1760691043760,-4407.9528341,0.00036657,2]
[391602820,1760691043770,-151.27,0.00036662,60]
[391602822,1760691043780,-151.1405959,0.00036738,2]
[391602824,1760691043789,-1463.3527355,0.00036745,2]
[391602826,1760691043799,-250.841811,0.00036762,60]
[391602827,1760691043808,-151.27,0.00036762,60]
[391602829,1760691043818,-368.0,0.0003684,120]
[391602830,1760691043827,-151.27,0.00036862,60]
[391602831,1760691043836,-3292.0,0.00036878,3]
[391602832,1760691043846,-869.0,0.00036932,7]
[391602833,1760691043855,-339.432499,0.00036956,2]
[391602834,1760691043864,-153.231301,0.00036956,2]
[391602835,1760691043874,-151.27,0.00036962,60]
[391602836,1760691043883,-1999.0,0.00036986,120]
[391602837,1760691043892,-1570.35071392,0.00037,2]
[391602838,1760691043902,-151.0,0.00037,16]
[391602839,1760691043912,-1463.3527355,0.00037007,2]
[391602840,1760691043921,-151.27,0.00037062,60]
[391602841,1760691043930,-869.0,0.00037093,7]
[391602842,1760691043940,-1360.0,0.00037125,2]
[391602843,1760691043950,-151.27,0.00037162,60]
[391602844,1760691043963,-366.0,0.00037199,2]
[391602845,1760691043973,-2386.77,0.000372,14]
[391602846,1760691043983,-151.27,0.00037262,60]
[391602847,1760691043993,-1463.3527355,0.00037355,2]
[391602848,1760691044002,-151.71,0.00037362,60]
[391602849,1760691044011,-1570.35071392,0.000374,2]
[391602850,1760691044020,-490944.0597,0.00037444,7]
[391602851,1760691044030,-151.0,0.00037444,120]
[391602852,1760691044039,-450.0,0.00037469,12]
[391602853,1760691044049,-366.0,0.00037486,7]
[391602854,1760691044059,-1463.3527355,0.00037551,2]
[391602855,1760691044068,-339.432499,0.00037646,60]
[391602856,1760691044077,-153.231301,0.00037646,60]
[391602857,1760691044086,-1460.0,0.00037673,2]
[391602858,1760691044095,-2971.95,0.000377,14]
[391602859,1760691044104,-152.08,0.000377,19]
[391602860,1760691044113,-500.0,0.00037756,30]
[391602861,1760691044123,-4414.32992108,0.00037759,2]
[391602862,1760691044132,-5751.56882452,0.00037766,2]
[391602863,1760691044142,-1570.35071392,0.000378,2]
[391602864,1760691044151,-1999.0,0.00037808,120]
[391602865,1760691044160,-649.65822549,0.00037875,4]
[391602866,1760691044170,-1463.3527355,0.00037885,2]
[391602867,1760691044179,-151.0,0.00038,11]
[391602868,1760691044189,-961.04,0.00038,2]
[391602869,1760691044198,-500.0,0.00038125,30]
[391602870,1760691044211,-151.0,0.00038125,30]
[391602871,1760691044220,-675.0,0.00038125,30]
[391602872,1760691044230,-151.9727561,0.00038125,30]
[391602873,1760691044314,-175.57269617,0.00038125,30]
[391602874,1760691044324,-500.0,0.00038125,30]
[391602875,1760691044335,-152.15258847,0.00038125,30]
[391602876,1760691044344,-151.9182964,0.00038125,2]
[391602877,1760691044354,-151.0,0.00038125,30]
[391602878,1760691044364,-151.0,0.00038125,30]
[391602879,1760691044373,-151.0,0.00038125,30]
[391602880,1760691044384,-151.0,0.00038125,30]
[391602881,1760691044396,-151.0,0.00038125,30]
[391602882,1760691044406,-151.0,0.00038125,30]
[391602883,1760691044416,-151.0,0.00038125,30]
[391602884,1760691044425,-151.63128741,0.00038125,30]
[391602885,1760691044435,-151.0,0.00038125,30]
[391602886,1760691044444,-151.0,0.00038125,30]
[391602887,1760691044454,-500.0,0.0003818,30]
[391602888,1760691044471,-234.86460134,0.0003818,30]
[391602889,1760691044481,-675.0,0.0003818,30]
[391602890,1760691044491,-500.0,0.0003818,30]
[391602891,1760691044500,-151.0,0.0003818,30]
[391602892,1760691044510,-151.0,0.0003818,30]
[391602893,1760691044520,-151.0,0.0003818,30]
[391602894,1760691044529,-1560.0,0.00038221,2]
[391602895,1760691044539,-500.0,0.00038235,30]
[391602896,1760691044549,-675.0,0.00038235,30]
[391602897,1760691044559,-500.0,0.00038235,30]
[391602898,1760691044568,-151.0,0.00038235,30]
[391602899,1760691044577,-151.0,0.00038235,30]
[391602900,1760691044586,-180.31992171,0.00038235,30]
[391602901,1760691044595,-151.33784099,0.00038235,30]
[391602902,1760691044604,-151.0,0.00038235,30]
[391602903,1760691044613,-151.0,0.00038235,30]
[391602904,1760691044623,-151.0,0.00038235,30]
[391602905,1760691044632,-151.0,0.00038235,30]
[391602906,1760691044642,-151.0,0.00038235,30]
[391602907,1760691044652,-151.0,0.00038235,30]
[391602908,1760691044662,-151.0,0.00038235,30]
[391602909,1760691044672,-151.47641401,0.00038235,30]
[391602910,1760691044681,-172.76696314,0.00038235,30]
[391602911,1760691044690,-151.0,0.00038235,30]
[391602912,1760691044699,-179.67658215,0.00038259,19]
[391602913,1760691044712,-500.0,0.00038289,30]
[391602914,1760691044721,-675.0,0.00038289,30]
[391602915,1760691044731,-500.0,0.00038289,30]
[391602916,1760691044740,-151.0,0.0003829,30]
[391602917,1760691044750,-151.0,0.0003829,30]
[391602918,1760691044759,-186.0004722,0.0003829,30]
[391602919,1760691044768,-151.0,0.0003829,30]
[391602920,1760691044778,-151.0,0.0003829,30]
[391602921,1760691044787,-151.0,0.0003829,30]
[391602922,1760691044796,-151.0,0.0003829,30]
[391602923,1760691044805,-151.0,0.0003829,30]
[391602924,1760691044814,-1463.3527355,0.00038326,2]
[391602925,1760691044823,-500.0,0.00038344,30]
[391602926,1760691044833,-675.0,0.00038344,30]
[391602927,1760691044843,-500.0,0.00038344,30]
[391602928,1760691044852,-151.0,0.00038345,30]
[391602929,1760691044862,-151.0,0.00038345,30]
[391602930,1760691044871,-151.0,0.00038345,30]
[391602931,1760691044880,-151.0,0.00038345,30]
[391602932,1760691044889,-199.22642638,0.00038345,30]
[391602933,1760691044898,-198.52718912,0.00038345,30]
[391602934,1760691044908,-500.0,0.00038356,120]
[391602935,1760691044917,-500.0,0.00038356,120]
[391602936,1760691044926,-500.0,0.00038356,120]
[391602937,1760691044935,-500.0,0.00038356,120]
[391602938,1760691044945,-500.0,0.00038356,120]
[391602939,1760691044954,-500.0,0.00038356,120]
[391602940,1760691044967,-422.83525962,0.00038356,120]
[391602941,1760691044976,-500.0,0.00038399,30]
[391602942,1760691044986,-675.0,0.00038399,30]
[391602943,1760691044995,-500.0,0.00038399,30]
[391602944,1760691045005,-198.0,0.00038399,30]
[391602945,1760691045015,-198.0,0.00038399,30]
[391602946,1760691045024,-151.0,0.00038399,30]
[391602947,1760691045033,-151.0,0.00038399,30]
[391602948,1760691045043,-500.0,0.00038454,30]
[391602949,1760691045052,-675.0,0.00038454,30]
[391602950,1760691045061,-500.0,0.00038454,30]
[391602951,1760691045071,-151.0,0.00038454,30]
[391602952,1760691045080,-151.0,0.00038454,30]
[391602953,1760691045089,-1463.3527355,0.00038493,2]
[391602954,1760691045099,-500.0,0.00038509,30]
[391602955,1760691045108,-675.0,0.00038509,30]
[391602956,1760691045118,-500.0,0.00038509,30]
[391602957,1760691045128,-164.25527309,0.00038509,30]
[391602958,1760691045137,-200.02762436,0.00038509,30]
[391602959,1760691045146,-500.0,0.00038563,30]
[391602960,1760691045156,-675.0,0.00038563,30]
[391602961,1760691045166,-500.0,0.00038563,30]
[391602962,1760691045175,-500.0,0.00038618,30]
[391602963,1760691045184,-675.0,0.00038618,30]
[391602964,1760691045193,-500.0,0.00038618,30]
[391602965,1760691045202,-1999.0,0.0003863,120]
[391602966,1760691045215,-500.0,0.00038673,30]
[391602967,1760691045225,-675.0,0.00038673,30]
[391602968,1760691045235,-600.0,0.00038673,30]
[391602969,1760691045245,-500.0,0.00038728,30]
[391602970,1760691045255,-675.0,0.00038728,30]
[391602971,1760691045264,-339.432499,0.00038769,60]
[391602972,1760691045274,-153.231301,0.00038769,60]
[391602973,1760691045283,-865.87543211,0.00038769,2]
[391602974,1760691045293,-500.0,0.00038783,30]
[391602975,1760691045303,-675.0,0.00038783,30]
[391602976,1760691045312,-1463.3527355,0.00038824,2]
[391602977,1760691045321,-500.0,0.00038837,30]
[391602978,1760691045331,-675.0,0.00038837,30]
[391602979,1760691045341,-619.63102723,0.00038892,30]
[391602980,1760691045350,-675.0,0.00038892,30]
[391602981,1760691045360,-1000.0,0.00038893,90]
[391602982,1760691045370,-1463.3527355,0.0003892,2]
[391602983,1760691045380,-675.0,0.00038947,30]
[391602984,1760691045392,-151.0,0.00039,19]
[391602985,1760691045403,-2386.77,0.00039,14]
[391602986,1760691045412,-675.0,0.00039002,30]
[391602987,1760691045422,-675.0,0.00039057,30]
[391602988,1760691045432,-675.0,0.00039111,30]
[391602989,1760691045442,-675.0,0.00039166,30]
[391602990,1760691045451,-8975.9,0.00039201,2]